bitfinex-derivatives/quotes_SOLF0:USTF0_20241218
["timestamp","ask_amount","ask_price","bid_price","bid_amount"]
[1734488611465,18.12237093,219.56,219.41,5.53811801]
[1734488611769,10.84808586,219.56,219.41,5.53811801]
[1734488612369,7.27437249,219.55,219.41,5.53811801]
[1734488612568,2.2777,219.51,219.41,5.53811801]
[1734488612967,2.2777,219.51,219.44,2.2784]
[1734488614263,2.2778,219.5,219.41,5.53811801]
[1734488614472,2.76,219.52,219.41,5.53811801]
[1734488615166,20.86649128,219.52,219.41,5.53811801]
[1734488615362,10.83903054,219.51,219.41,5.53811801]
[1734488615570,2.278,219.48,219.42,2.2786]
[1734488616369,2.76,219.52,219.39,13.92483916]
[1734488616673,2.76,219.52,219.35,13.92483916]
[1734488616965,2.2785,219.43,219.35,13.92483916]
[1734488617970,2.76,219.45,219.35,13.92483916]
[1734488618272,2.76,219.45,219.38,2.2789]
[1734488618969,2.2784,219.44,219.35,13.92483916]
[1734488619767,10.80930772,219.47,219.4,2.2787]
[1734488619969,2.76,219.5,219.38,5.43445125]
[1734488620165,2.76,219.5,219.39,13.92483916]
[1734488620367,2.76,219.5,219.45,2.2782]
[1734488621471,2.2778,219.5,219.45,2.2782]
[1734488621776,2.76,219.53,219.43,2.2785]
[1734488622070,2.2777,219.5,219.4,2.76]
[1734488622770,13.92483916,219.62,219.44,13.92483916]
[1734488623073,13.92483916,219.62,219.51,2.2776]
[1734488623074,18.07989502,219.61,219.51,2.2776]
[1734488623271,7.25745847,219.6,219.51,2.2776]
[1734488624265,2.2771,219.57,219.52,2.2775]
[1734488625171,13.09953655,219.57,219.52,2.2775]
[1734488625377,10.82243655,219.56,219.52,2.2775]
[1734488625571,2.2771,219.57,219.52,2.2775]
[1734488626372,18.10652362,219.58,219.5,2.2776]
[1734488626577,18.10652362,219.57,219.46,5.8743]
[1734488626772,18.10652362,219.56,219.46,5.8743]
[1734488626974,13.11584555,219.55,219.46,5.8743]
[1734488627178,2.2772,219.55,219.46,5.8743]
[1734488627376,2.76,219.56,219.46,5.8743]
[1734488628177,20.89090584,219.56,219.46,5.8743]
[1734488628377,18.13768306,219.55,219.46,5.8743]
[1734488628578,10.85310389,219.55,219.46,5.8743]
[1734488628774,2.76,219.56,219.46,5.8743]
[1734488628975,2.2769,219.59,219.46,5.8743]
[1734488629477,20.4259925,219.59,219.52,2.2775]
[1734488629672,18.1490925,219.58,219.52,2.2775]
[1734488629878,7.28495675,219.57,219.52,2.2775]
[1734488631775,20.4259925,219.58,219.52,2.2775]
[1734488631980,18.1490925,219.57,219.52,2.2775]
[1734488632279,7.28495675,219.56,219.52,2.2775]
[1734488635778,7.28495675,219.56,219.46,3.1143]
[1734488635979,7.28495675,219.56,219.46,1.5903]
[1734488636175,7.28495675,219.56,219.45,1.5789]
[1734488636176,8.69591945,219.57,219.45,1.5789]
[1734488636372,33.7848015,219.57,219.45,1.5789]
[1734488636577,18.1490925,219.56,219.45,1.5789]
[1734488636775,7.28495675,219.55,219.47,2.2781]
[1734488636975,2.76,219.54,219.45,1.5789]
[1734488637175,2.76,219.54,219.49,2.2778]
[1734488637378,20.9090925,219.54,219.49,2.2778]
[1734488637578,18.1490925,219.53,219.49,2.2778]
[1734488637782,7.28495675,219.52,219.49,2.2778]
[1734488638678,7.28495675,219.52,219.45,1.5789]
[1734488638679,10.86413575,219.53,219.46,8.69591945]
[1734488638879,2.76,219.58,219.46,8.69591945]
[1734488638880,10.86413575,219.52,219.46,8.69591945]
[1734488639082,2.277,219.57,219.46,11.45591945]
[1734488639379,2.277,219.57,219.52,2.2775]
[1734488639578,2.277,219.57,219.47,2.76]
[1734488639773,20.53787031,219.57,219.47,2.76]
[1734488639971,20.53797031,219.56,219.5,2.2777]
[1734488640184,18.26087031,219.55,219.45,1.5789]
[1734488640382,18.26087031,219.54,219.45,1.5789]
[1734488640680,18.26087031,219.53,219.45,1.5789]
[1734488640879,18.26087031,219.52,219.45,1.5789]
[1734488641078,18.26087031,219.51,219.45,1.5789]
[1734488641279,18.26087031,219.5,219.45,1.5789]
[1734488641480,18.26087031,219.49,219.45,1.5789]
[1734488641677,8.69591945,219.57,219.46,2.2781]
[1734488641678,10.93102955,219.48,219.46,2.2781]
[1734488641981,2.2775,219.52,219.46,2.2781]
[1734488642479,2.2778,219.5,219.45,1.5789]
[1734488642777,2.76,219.52,219.39,2.9798]
[1734488642978,2.2786,219.42,219.36,3.7488]
[1734488643179,2.2786,219.42,219.36,1.4696]
[1734488643982,27.48763886,219.44,219.36,1.4696]
[1734488644182,18.25881504,219.43,219.36,15.52172598]
[1734488644381,10.20971945,219.51,219.36,15.52172598]
[1734488644382,18.25881504,219.42,219.37,1.568]
[1734488644581,2.76,219.49,219.39,8.69591945]
[1734488645081,25.24026918,219.52,219.4,1.489]
[1734488645274,18.28505226,219.51,219.4,1.489]
[1734488645478,7.33976333,219.5,219.4,1.489]
[1734488645878,18.28505226,219.5,219.4,1.489]
[1734488646078,18.28505226,219.49,219.4,1.489]
[1734488646279,2.76,219.53,219.4,1.489]
[1734488646280,18.28505226,219.48,219.4,1.489]
[1734488646477,18.28505226,219.47,219.42,2.2786]
[1734488646682,18.28505226,219.47,219.4,1.489]
[1734488646683,18.28505226,219.46,219.4,1.489]
[1734488646882,10.94528893,219.45,219.4,1.489]
[1734488647183,2.2777,219.51,219.44,2.2784]
[1734488648680,33.95020315,219.51,219.37,1.568]
[1734488648883,25.2542837,219.5,219.37,1.568]
[1734488649185,2.2786,219.42,219.37,1.568]
[1734488649384,2.2786,219.42,219.36,1.4696]
[1734488649585,2.2787,219.41,219.36,1.4696]
[1734488649983,25.2542837,219.44,219.36,1.4696]
[1734488650185,2.2786,219.42,219.36,3.7488]
[1734488650381,20.57397921,219.42,219.36,3.7488]
[1734488650587,18.29537921,219.41,219.36,3.7488]
[1734488650885,18.29537921,219.4,219.36,3.7488]
[1734488651086,18.29537921,219.39,219.36,3.7488]
[1734488651288,10.94766838,219.38,219.36,3.7488]
[1734488651586,2.76,219.45,219.36,3.7488]
[1734488652291,2.2786,219.42,219.36,3.7488]
[1734488653184,20.56753759,219.42,219.36,3.7488]
[1734488653382,18.28893759,219.41,219.36,3.7488]
[1734488653686,10.94750397,219.41,219.39,2.2789]
[1734488653889,10.94750397,219.4,219.39,2.2789]
[1734488654091,2.76,219.44,219.39,2.2789]
[1734488654686,18.28610118,219.44,219.39,2.2789]
[1734488654888,7.33859721,219.43,219.39,2.2789]
[1734488655093,2.2785,219.44,219.36,1.4696]
[1734488655288,25.24370928,219.45,219.37,2.279]
[1734488655494,25.24364559,219.44,219.37,2.279]
[1734488655688,18.28610118,219.43,219.36,1.4696]
[1734488655988,18.28610118,219.42,219.36,1.4696]
[1734488656187,18.28610118,219.41,219.36,1.4696]
[1734488656382,18.28610118,219.4,219.36,1.4696]
[1734488656579,10.94750397,219.39,219.36,1.4696]
[1734488656780,2.2785,219.44,219.36,1.4696]
[1734488657186,2.2785,219.44,219.38,2.2789]
[1734488657586,20.56718111,219.44,219.38,2.2789]
[1734488657787,18.28868111,219.43,219.39,2.2789]
[1734488658091,7.34146934,219.42,219.39,2.2789]
[1734488659398,18.28868111,219.42,219.36,3.7487]
[1734488659594,18.28868111,219.41,219.36,3.7487]
[1734488659893,18.28868111,219.4,219.36,3.7487]
[1734488660088,10.94721177,219.39,219.36,3.7487]
[1734488660386,2.2788,219.41,219.36,3.7487]
[1734488661785,2.2789,219.4,219.36,1.4696]
[1734488662386,20.55882462,219.4,219.36,1.4696]
[1734488662688,10.9421143,219.39,219.36,1.4696]
[1734488662898,2.2791,219.38,219.33,2.2794]
[1734488663096,1.5795,219.47,219.28,0.23924]
[1734488663097,2.76,219.41,219.29,6.80849214]
[1734488663399,2.76,219.4,219.29,6.80849214]
[1734488663702,28.02622155,219.4,219.29,6.80849214]
[1734488663998,2.2792,219.36,219.31,2.2797]
[1734488664800,2.2794,219.34,219.28,0.23924]
[1734488665105,21.06308084,219.35,219.28,0.23924]
[1734488665305,2.2798,219.31,219.28,0.23924]
[1734488665896,13.23582787,219.31,219.28,0.23924]
[1734488666200,2.2798,219.31,219.28,0.23924]
[1734488666601,2.2796,219.32,219.28,0.23924]
[1734488666907,18.2537341,219.33,219.28,0.23924]
[1734488667100,18.2537341,219.32,219.28,0.23924]
[1734488667400,10.92614119,219.31,219.28,0.23924]
[1734488667606,2.76,219.35,219.28,0.23924]
[1734488667801,2.2799,219.3,219.28,0.23924]
[1734488667995,2.76,219.3,219.28,0.23924]
[1734488668302,11.45591945,219.3,219.16,1.4822]
[1734488668498,2.2804,219.25,219.16,1.4822]
[1734488668702,2.76,219.25,219.16,1.4822]
[1734488669400,20.99925464,219.25,219.18,5.54473695]
[1734488669707,2.76,219.25,219.18,5.54473695]
[1734488670006,5.0404,219.25,219.2,2.2808]
[1734488670408,5.0404,219.25,219.19,2.281]
[1734488670607,2.76,219.25,219.18,5.54473695]
[1734488670803,20.95779309,219.25,219.18,5.54473695]
[1734488671103,2.76,219.25,219.18,5.54473695]
[1734488671708,8.69591945,219.33,219.18,5.54473695]
[1734488671709,2.76,219.29,219.18,5.54473695]
[1734488672800,20.93801496,219.29,219.18,5.54473695]
[1734488673001,8.69591945,219.24,219.09,8.69591945]
[1734488673206,2.76,219.23,219.13,5.513347]
[1734488673406,2.281,219.19,219.13,5.513347]
[1734488673607,2.281,219.19,219.07,3.0804]
[1734488673802,2.281,219.19,219.07,5.8404]
[1734488674103,10.88044272,219.2,219.12,2.2816]
[1734488674104,2.2811,219.18,219.12,2.2816]
[1734488675302,2.2812,219.17,219.11,2.2818]
[1734488675903,10.88044272,219.2,219.07,5.8404]
[1734488676207,10.88044272,219.19,219.07,5.8404]
[1734488676502,8.69591945,219.21,219.07,5.8404]
[1734488676908,2.2812,219.17,219.08,5.40638985]
[1734488678010,2.2811,219.18,219.11,2.2817]
[1734488678312,2.76,219.18,219.08,5.40638985]
[1734488679407,2.2812,219.17,219.11,2.2817]
[1734488679908,13.59802938,219.18,219.08,5.40638985]
[1734488680100,2.76,219.18,219.08,5.40638985]
[1734488680302,2.76,219.18,219.07,11.77631945]
[1734488680702,13.59497964,219.18,219.07,11.77631945]
[1734488680902,2.76,219.18,219.07,11.77631945]
[1734488681509,2.2813,219.16,219.1,2.2819]
[1734488682111,20.85975359,219.18,219.07,3.0804]
[1734488682304,2.76,219.18,219.07,3.0804]
[1734488682506,2.76,219.18,219.04,8.69591945]
[1734488682507,11.45591945,219.18,219.04,8.69591945]
[1734488682715,10.83370756,219.17,219.04,8.69591945]
[1734488683015,10.83370756,219.17,219.02,4.3093]
[1734488683016,8.69591945,219.15,219.02,1.5493]
[1734488683204,2.2819,219.11,219.04,2.2824]
[1734488683404,2.2819,219.11,219.02,1.5493]
[1734488683405,5.0419,219.11,219.02,1.5493]
[1734488684009,2.76,219.11,219.02,1.5493]
[1734488684414,13.58751715,219.11,219.02,1.5493]
[1734488684617,2.2822,219.07,219.02,3.832]
[1734488685108,13.58825728,219.11,219.03,2.2826]
[1734488685109,2.2821,219.09,219.03,2.2826]
[1734488686405,2.2821,219.09,219.04,2.2825]
[1734488686807,1.5129,219.14,219.02,1.5493]
[1734488687007,8.69591945,219.15,219.02,1.5493]
[1734488687008,2.76,219.13,219.02,1.5493]
[1734488687414,2.76,219.13,219.04,8.69591945]
[1734488688413,10.82356363,219.17,219.04,8.69591945]
[1734488688613,14.29524991,219.24,219.1,8.69591945]
[1734488688819,20.84640524,219.23,219.11,3.1155]
[1734488689018,10.82568771,219.22,219.15,2.2813]
[1734488689213,2.76,219.23,219.15,2.2813]
[1734488689518,2.76,219.23,219.11,3.1155]
[1734488690210,8.69591945,219.27,219.13,8.69591945]
[1734488690417,1.5946,219.34,219.16,8.69591945]
[1734488690418,8.69591945,219.3,219.16,8.69591945]
[1734488690722,18.11502586,219.32,219.26,2.2802]
[1734488690913,10.84286278,219.32,219.26,2.2802]
[1734488691516,10.84286278,219.32,219.22,13.30751945]
[1734488691714,1.4505,219.44,219.22,13.30751945]
[1734488691715,2.76,219.38,219.25,8.69591945]
[1734488691918,13.61541105,219.39,219.26,2.76]
[1734488692118,2.279,219.38,219.26,2.76]
[1734488692319,8.69591945,219.37,219.26,2.76]
[1734488692624,10.85541105,219.38,219.33,2.2795]
[1734488692923,10.85541105,219.38,219.26,2.76]
[1734488692924,11.45591945,219.43,219.28,8.69591945]
[1734488693227,18.14850012,219.42,219.28,8.69591945]
[1734488693427,18.14850012,219.42,219.26,2.76]
[1734488693428,10.86338165,219.42,219.31,8.69591945]
[1734488693615,2.76,219.43,219.32,4.2501]
[1734488693815,8.69591945,219.4,219.25,1.4901]
[1734488694322,2.2792,219.36,219.28,2.28]
[1734488694520,2.76,219.37,219.25,1.4901]
[1734488694717,5.0391,219.37,219.29,2.2799]
[1734488695119,15.90869075,219.37,219.29,2.2799]
[1734488695316,10.86959075,219.36,219.29,2.2799]
[1734488695524,5.0391,219.37,219.29,2.2799]
[1734488696222,20.9230586,219.37,219.3,2.2798]
[1734488696518,20.9230586,219.37,219.25,4.2501]
[1734488696519,10.87202536,219.36,219.25,4.2501]
[1734488696724,2.76,219.37,219.25,4.2501]
[1734488697319,13.63398099,219.37,219.25,4.2501]
[1734488697520,2.76,219.37,219.25,4.2501]
[1734488697923,6.92642408,219.45,219.26,8.69591945]
[1734488697924,10.87637955,219.38,219.26,8.69591945]
[1734488698119,2.76,219.42,219.26,8.69591945]
[1734488698324,2.2787,219.41,219.33,2.2795]
[1734488698818,20.45164536,219.41,219.33,2.2795]
[1734488699020,8.69591945,219.37,219.25,1.4901]
[1734488699424,11.45591945,219.37,219.25,1.4901]
[1734488699722,10.87840016,219.36,219.29,2.2799]
[1734488700319,10.87840016,219.36,219.25,10.18601945]
[1734488700526,2.76,219.41,219.25,10.18601945]
[1734488701031,20.93036228,219.41,219.25,10.18601945]
[1734488701222,18.17036228,219.4,219.25,10.18601945]
[1734488701423,9.57347331,219.39,219.31,2.2796]
[1734488701722,10.87578897,219.38,219.25,10.18601945]
[1734488701922,2.2792,219.36,219.27,2.28]
[1734488702123,2.2792,219.36,219.25,10.18601945]
[1734488703427,2.2792,219.36,219.29,2.2799]
[1734488704323,2.76,219.41,219.25,1.4901]
[1734488704324,19.58059731,219.37,219.25,1.4901]
[1734488704529,6.92642408,219.45,219.22,8.65009926]
[1734488704530,8.69591945,219.34,219.22,8.65009926]
[1734488704722,8.69591945,219.31,219.22,3.0678]
[1734488704927,2.74,219.3,219.22,1.5776]
[1734488705123,8.69591945,219.28,219.17,4.2035]
[1734488705424,2.2806,219.23,219.17,1.4635]
[1734488705625,11.43591945,219.25,219.16,2.2812]
[1734488706427,11.43591945,219.25,219.14,1.4627]
[1734488706623,8.69591945,219.22,219.14,1.4627]
[1734488706823,8.69591945,219.22,219.12,2.2816]
[1734488707030,26.89417737,219.22,219.12,2.2816]
[1734488707230,8.69591945,219.19,219.08,1.5613]
[1734488707530,2.74,219.18,219.08,1.5613]
[1734488708032,27.60376468,219.18,219.07,1.4627]
[1734488708228,2.2816,219.13,219.07,1.4627]
[1734488708427,7.30780961,219.16,219.07,1.4627]
[1734488709331,2.2816,219.13,219.07,3.7449]
[1734488710431,2.74,219.18,219.07,1.4627]
[1734488711232,2.74,219.18,219.07,4.2027]
[1734488711735,2.74,219.18,219.12,2.2816]
[1734488711736,13.6391669,219.18,219.12,2.2816]
[1734488711934,2.74,219.18,219.07,4.2027]
[1734488712732,13.64581173,219.18,219.07,4.2027]
[1734488712935,2.74,219.18,219.07,4.2027]
[1734488713431,2.74,219.18,219.12,2.2817]
[1734488714034,13.64691792,219.18,219.1,2.2818]
[1734488714329,10.90691792,219.17,219.07,4.2027]
[1734488714531,2.74,219.18,219.07,4.2027]
[1734488714733,2.74,219.18,219.13,2.2816]
[1734488714931,20.96306332,219.21,219.13,2.2816]
[1734488715132,18.22357803,219.2,219.13,2.2816]
[1734488715333,10.9080273,219.2,219.13,2.2816]
[1734488715538,2.2809,219.2,219.13,2.2816]
[1734488716031,20.5048572,219.2,219.13,2.2816]
[1734488716240,10.90808169,219.19,219.13,2.2816]
[1734488716432,2.2809,219.2,219.13,2.2816]
[1734488716830,2.2811,219.18,219.12,2.2817]
[1734488717037,10.90815432,219.19,219.07,4.2027]
[1734488717239,2.74,219.21,219.07,4.2027]
[1734488717741,2.281,219.19,219.11,2.2818]
[1734488718035,2.281,219.19,219.07,4.2027]
[1734488718235,15.82014138,219.2,219.19,2.281]
[1734488718436,13.97121982,219.39,219.19,2.74]
[1734488718633,7.60610784,219.38,219.19,16.71121982]
[1734488718830,2.2794,219.35,219.19,16.71121982]
[1734488720039,2.2794,219.34,219.19,16.71121982]
[1734488720739,2.2794,219.34,219.26,2.2802]
[1734488721237,2.2794,219.34,219.27,2.74]
[1734488721438,2.2795,219.33,219.27,2.74]
[1734488721633,2.2795,219.33,219.26,2.2802]
[1734488721846,13.97121982,219.34,219.15,13.97121982]
[1734488722142,2.2801,219.28,219.15,13.97121982]
[1734488722335,2.2801,219.28,219.16,2.74]
[1734488722743,13.97121982,219.34,219.18,5.58662988]
[1734488723244,13.97121982,219.26,219.09,2.74]
[1734488723435,4.2691,219.25,219.12,5.3501356]
[1734488723633,5.7439,219.25,219.09,2.74]
[1734488723838,1.4566,219.24,219.12,2.2817]
[1734488724638,2.2808,219.21,219.12,2.2817]
[1734488724842,1.4566,219.24,219.13,2.2816]
[1734488725443,2.2809,219.2,219.13,2.2816]
[1734488725740,2.2809,219.2,219.14,2.2815]
[1734488725941,2.2809,219.2,219.11,5.52695238]
[1734488726140,2.281,219.19,219.12,2.2816]
[1734488727640,2.281,219.19,219.13,2.2816]
[1734488727844,2.74,219.18,219.02,2.74]
[1734488728141,2.74,219.17,219.05,2.2823]
[1734488728344,2.74,219.19,219.08,5.38234232]
[1734488728544,2.74,219.22,219.09,16.71121982]
[1734488728946,2.74,219.22,219.12,2.2816]
[1734488729249,2.74,219.22,219.13,3.0605]
[1734488730142,2.74,219.22,219.16,2.2813]
[1734488730443,2.74,219.22,219.08,5.38234232]
[1734488730945,2.2812,219.17,219.08,5.38234232]
[1734488731248,5.0212,219.17,219.08,5.38234232]
[1734488731645,2.2813,219.16,219.1,2.2819]
[1734488732448,2.74,219.17,219.1,2.2819]
[1734488732947,2.74,219.17,219.08,5.38234232]
[1734488733249,5.0212,219.17,219.11,2.2818]
[1734488733643,2.74,219.17,219.08,5.38234232]
[1734488733837,19.12338323,219.2,219.08,5.38234232]
[1734488733838,17.54608323,219.2,219.08,5.38234232]
[1734488734037,2.74,219.22,219.12,8.72368367]
[1734488735845,17.56447198,219.24,219.15,8.72368367]
[1734488736140,2.28,219.28,219.15,2.74]
[1734488736141,2.74,219.28,219.15,2.74]
[1734488736745,2.74,219.28,219.14,16.8692323]
[1734488736942,2.74,219.28,219.14,2.9175]
[1734488737140,2.74,219.28,219.14,1.4555]
[1734488737445,2.2813,219.16,219.1,2.2819]
[1734488737646,2.74,219.18,219.08,5.38234232]
[1734488738046,5.0212,219.18,219.12,2.2817]
[1734488738442,2.74,219.18,219.08,5.38234232]
[1734488738646,2.74,219.2,219.08,5.38234232]
[1734488739042,2.74,219.2,219.1,13.9517323]
[1734488739245,2.74,219.2,219.1,16.6917323]
[1734488739452,5.0206,219.23,219.11,1.461]
[1734488739752,2.74,219.23,219.11,1.461]
[1734488739951,2.2807,219.22,219.15,2.2813]
[1734488740948,2.74,219.23,219.16,2.2812]
[1734488742150,4.2791,219.24,219.16,2.2812]
[1734488742451,2.2807,219.22,219.16,2.2812]
[1734488742843,1.4491,219.25,219.19,2.281]
[1734488743053,11.20791472,219.25,219.19,2.281]
[1734488743250,17.58166046,219.24,219.19,2.281]
[1734488743451,10.56284574,219.24,219.19,2.281]
[1734488743648,2.74,219.26,219.2,2.2808]
[1734488744252,2.2803,219.25,219.19,2.2809]
[1734488745152,17.58949345,219.25,219.15,2.74]
[1734488745452,2.74,219.29,219.15,2.74]
[1734488745852,2.2801,219.28,219.15,2.74]
[1734488746059,2.74,219.29,219.15,2.74]
[1734488746451,20.34201758,219.29,219.15,2.74]
[1734488746656,17.60201758,219.28,219.15,2.74]
[1734488746960,7.02687745,219.27,219.15,2.74]
[1734488747457,9.30707745,219.27,219.2,2.2808]
[1734488748360,7.02687745,219.27,219.2,2.2808]
[1734488748556,7.02687745,219.27,219.19,2.2809]
[1734488748759,14.02212686,219.27,219.14,16.6917323]
[1734488749058,10.57514013,219.26,219.12,2.74]
[1734488749254,14.02212686,219.25,219.11,1.461]
[1734488749460,13.31514013,219.24,219.11,1.461]
[1734488749663,2.2811,219.19,219.11,1.461]
[1734488750657,2.2811,219.18,219.13,2.2816]
[1734488751151,9.30797745,219.18,219.13,2.2816]
[1734488751351,2.2811,219.18,219.12,2.2817]
[1734488751758,2.2811,219.18,219.08,8.12234232]
[1734488751759,2.74,219.19,219.08,5.38234232]
[1734488752149,27.34233223,219.19,219.02,1.4478]
[1734488752355,27.34233223,219.19,219.06,2.2822]
[1734488752356,2.2817,219.13,219.06,2.2822]
[1734488752755,2.2814,219.15,219.03,4.2985]
[1734488753055,7.02687745,219.15,219.07,7.77922406]
[1734488753256,10.57514013,219.18,219.07,7.77922406]
[1734488753257,14.02538414,219.17,219.07,5.49712406]
[1734488753551,10.57514013,219.16,219.07,5.49712406]
[1734488753758,2.2816,219.14,219.07,7.77932406]
[1734488755355,2.2816,219.14,219.07,5.49712406]
[1734488755661,2.2816,219.13,219.08,2.2821]
[1734488755953,14.02920411,219.17,219.07,7.77932406]
[1734488756159,10.57514013,219.16,219.07,5.49712406]
[1734488756359,2.2817,219.12,219.07,5.49712406]
[1734488757462,2.74,219.14,219.02,1.4478]
[1734488757662,25.49955224,219.14,218.98,8.72978864]
[1734488757858,24.60490373,219.13,218.98,8.72978864]
[1734488758059,24.60490373,219.12,218.98,8.99326864]
[1734488758260,24.60490373,219.11,218.98,8.99326864]
[1734488758461,17.60201758,219.1,218.98,8.99326864]
[1734488758761,20.34201758,219.09,218.99,2.283]
[1734488759056,17.60201758,219.08,218.99,2.283]
[1734488759259,10.57514013,219.08,218.99,2.283]
[1734488759464,2.2824,219.05,218.99,2.283]
[1734488760367,2.74,219.09,218.98,8.99326864]
[1734488760368,2.2825,219.04,218.98,8.99326864]
[1734488760762,2.2825,219.04,218.99,5.53546246]
[1734488761869,7.03597796,219.07,218.98,0.26348]
[1734488762465,2.2827,219.02,218.98,0.26348]
[1734488762960,2.2828,219.01,218.98,0.26348]
[1734488763165,2.74,219.04,218.98,0.26348]
[1734488763767,20.58228915,219.04,218.98,0.26348]
[1734488763967,17.82050514,219.03,218.98,0.26348]
[1734488764165,10.80631119,219.03,218.98,0.26348]
[1734488764369,10.80631119,219.02,218.98,0.26348]
[1734488764572,2.74,219.04,218.98,0.26348]
[1734488765372,9.70350672,219.04,218.98,0.26348]
[1734488765571,2.2834,218.96,218.91,2.2839]
[1734488765777,2.2834,218.96,218.88,8.72978864]
[1734488765973,2.74,218.99,218.89,5.40107708]
[1734488766373,20.51910155,218.99,218.89,5.40107708]
[1734488766574,10.76801823,218.98,218.89,5.40107708]
[1734488766875,2.74,218.99,218.89,5.40107708]
[1734488767472,2.74,218.99,218.9,2.284]
[1734488767473,2.2834,218.96,218.9,2.284]
[1734488767973,2.74,218.99,218.89,5.40107708]
[1734488768175,2.2834,218.96,218.9,2.284]
[1734488770778,10.74008788,218.99,218.91,8.72978864]
[1734488770973,2.74,219.05,218.91,8.72978864]
[1734488771169,2.74,219.05,218.91,11.46978864]
[1734488771369,13.46765563,219.05,218.91,11.46978864]
[1734488771577,10.72765563,219.04,218.91,11.46978864]
[1734488771774,2.74,219.05,218.91,11.46978864]
[1734488772278,13.46744484,219.05,218.91,11.46978864]
[1734488772479,2.2829,219.01,218.95,2.2835]
[1734488772978,2.74,219.05,218.95,2.2835]
[1734488774473,2.2829,219.0,218.95,2.2835]
[1734488774876,2.2829,219.0,218.91,2.2838]
[1734488774877,2.74,219.0,218.91,2.2838]
[1734488775077,2.2834,218.96,218.9,1.5898]
[1734488775478,2.74,219.0,218.9,1.5898]
[1734488775777,2.2836,218.94,218.9,1.5898]
[1734488775981,2.74,219.0,218.86,1.4743]
[1734488776181,8.72978864,218.99,218.86,1.4743]
[1734488776480,10.33178864,218.99,218.87,5.4437794]
[1734488776681,8.72978864,218.96,218.8,1.4499]
[1734488776881,2.74,218.95,218.8,1.4499]
[1734488777084,2.74,218.95,218.83,5.41007281]
[1734488777584,8.72978864,218.96,218.83,5.41007281]
[1734488777776,5.0236,218.95,218.83,5.41007281]
[1734488777978,10.33178864,218.99,218.85,8.72978864]
[1734488778182,10.33178864,218.99,218.89,2.284]
[1734488778183,2.74,218.95,218.89,2.284]
[1734488779089,2.74,218.95,218.85,8.72978864]
[1734488779090,5.0233,218.97,218.9,2.284]
[1734488780383,2.74,218.99,218.88,8.72978864]
[1734488781594,2.74,218.99,218.91,8.72978864]
[1734488781784,1.4448,219.03,218.91,8.72978864]
[1734488781785,4.1848,219.03,218.92,1.4929]
[1734488783388,4.1848,219.03,218.94,2.2836]
[1734488783389,2.2828,219.01,218.94,2.2836]
[1734488784489,1.4448,219.03,218.92,1.4929]
[1734488784690,151.55455559,219.17,218.94,14.25251901]
[1734488784984,2.2821,219.08,218.99,2.283]
[1734488785185,2.2821,219.08,218.95,2.74]
[1734488785587,5.022,219.09,219.01,2.2827]
[1734488785783,10.71244702,219.11,218.97,8.72978864]
[1734488786089,80.6974852,219.12,218.97,8.72978864]
[1734488786794,80.6974852,219.12,219.05,2.2824]
[1734488787884,2.74,219.12,219.0,11.46978864]
[1734488788088,10.26778864,219.18,219.03,8.72978864]
[1734488788291,2.74,219.16,219.04,1.5147]
[1734488788493,10.73201772,219.17,219.05,2.74]
[1734488788693,2.74,219.19,219.06,8.72978864]
[1734488788890,2.74,219.19,219.09,8.72978864]
[1734488789089,4.2985,219.23,219.1,2.74]
[1734488789394,22.02139194,219.23,219.1,2.74]
[1734488789588,17.72289194,219.22,219.1,2.74]
[1734488789795,10.73438681,219.22,219.1,2.74]
[1734488789995,10.73438681,219.21,219.12,8.72978864]
[1734488790307,1.466,219.25,219.12,8.72978864]
[1734488790503,1.466,219.25,219.18,2.281]